bitfinex-derivatives/quotes_BTCF0:USTF0_20251230
["timestamp","ask_amount","ask_price","bid_price","bid_amount"]
[1767132701693,0.39108205,88408.0,88399.0,0.0113244]
[1767132705688,0.00016966,88412.0,88390.0,0.0679656]
[1767132705895,0.05680966,88412.0,88390.0,0.0679656]
[1767132706296,0.00016966,88412.0,88390.0,0.05664]
[1767132706490,0.00016966,88412.0,88405.0,0.0113237]
[1767132708501,0.00016966,88412.0,88407.0,0.0113234]
[1767132709596,0.00016966,88412.0,88404.0,0.0113238]
[1767132710701,0.00016966,88412.0,88406.0,0.0113236]
[1767132719214,6e-08,88412.0,88400.0,0.00016966]
[1767132719607,6e-08,88412.0,88405.0,0.0113237]
[1767132725115,6e-08,88412.0,88402.0,0.011324]
[1767132728513,6e-08,88412.0,88400.0,0.00016966]
[1767132730217,6e-08,88412.0,88403.0,0.0113239]
[1767132731023,6e-08,88412.0,88405.0,0.0113237]
[1767132732719,6e-08,88412.0,88402.0,0.0113241]
[1767132733615,6e-08,88412.0,88400.0,0.00016966]
[1767132735231,6e-08,88412.0,88404.0,0.0113238]
[1767132735728,6e-08,88412.0,88400.0,0.00016966]
[1767132735932,6e-08,88412.0,88403.0,0.0113239]
[1767132738724,6e-08,88412.0,88402.0,0.0113241]
[1767132739133,6e-08,88412.0,88404.0,0.0113238]
[1767132742237,6e-08,88412.0,88403.0,0.011324]
[1767132744543,6e-08,88412.0,88402.0,0.0113241]
[1767132745638,6e-08,88412.0,88400.0,0.00016966]
[1767132746346,6e-08,88412.0,88400.0,0.01149396]
[1767132755750,6e-08,88412.0,88402.0,0.0113241]
[1767132759246,6e-08,88412.0,88404.0,0.0113238]
[1767132765253,6e-08,88412.0,88401.0,0.0113242]
[1767132767048,6e-08,88412.0,88403.0,0.0113239]
[1767132767251,6e-08,88412.0,88402.0,0.0113241]
[1767132768762,6e-08,88412.0,88400.0,0.00016966]
[1767132773147,0.011323,88411.0,88400.0,0.00016966]
[1767132773362,6e-08,88412.0,88400.0,0.00016966]
[1767132773561,6e-08,88412.0,88403.0,0.0113239]
[1767132773749,6e-08,88412.0,88400.0,0.01149396]
[1767132774165,6e-08,88412.0,88402.0,0.0113241]
[1767132774955,6e-08,88412.0,88400.0,0.00016966]
[1767132775160,6e-08,88412.0,88401.0,0.0113242]
[1767132777761,6e-08,88412.0,88400.0,0.00016966]
[1767132777962,6e-08,88412.0,88402.0,0.0113241]
[1767132778460,6e-08,88412.0,88400.0,0.00016966]
[1767132779363,6e-08,88412.0,88401.0,0.0113242]
[1767132779966,6e-08,88412.0,88403.0,0.0113239]
[1767132780364,0.10663346,88437.0,88409.0,0.0113231]
[1767132780562,0.17834764,88436.0,88411.0,0.0113229]
[1767132780864,0.04541597,88442.0,88420.0,0.14971756]
[1767132781059,0.0113186,88446.0,88427.0,4e-05]
[1767132781253,0.0113189,88444.0,88428.0,0.05680966]
[1767132781454,0.0204214,88448.0,88430.0,0.13839586]
[1767132781663,0.05664,88455.0,88447.0,4e-05]
[1767132782162,0.0113183,88448.0,88447.0,4e-05]
[1767132782360,0.05664,88455.0,88436.0,0.05664]
[1767132782565,0.0113187,88445.0,88436.0,0.05664]
[1767132784160,0.011319,88443.0,88436.0,0.05664]
[1767132785564,0.05664,88455.0,88436.0,0.05664]
[1767132785770,0.13839586,88450.0,88436.0,0.05664]
[1767132786364,0.09624,88457.0,88439.0,0.0113193]
[1767132786768,0.09624,88457.0,88441.0,0.0113191]
[1767132788168,0.09624,88457.0,88442.0,0.05664]
[1767132788661,0.1075571,88457.0,88442.0,0.05664]
[1767132789479,0.09624,88457.0,88442.0,0.05664]
[1767132790368,0.05664,88459.0,88442.0,0.05664]
[1767132790568,0.05664,88459.0,88448.0,0.0113181]
[1767132792381,0.05664,88459.0,88449.0,0.13839586]
[1767132792872,0.05664,88459.0,88448.0,0.0113181]
[1767132793079,0.05664,88459.0,88450.0,0.0113179]
[1767132794082,0.05664,88459.0,88446.0,0.0113184]
[1767132794377,0.15284,88464.0,88446.0,0.0113184]
[1767132795477,0.13839586,88470.0,88443.0,0.0962]
[1767132795679,0.05664,88469.0,88460.0,0.13839586]
[1767132795875,0.05664,88471.0,88456.0,0.00016957]
[1767132797277,0.0113153,88472.0,88456.0,0.00016957]
[1767132798777,0.05664,88473.0,88456.0,0.00016957]
[1767132799885,0.0113152,88472.0,88456.0,0.00016957]
[1767132800381,0.05664,88473.0,88460.0,0.13839586]
[1767132800581,0.01525172,88492.0,88463.0,0.14971216]
[1767132800582,0.011314,88482.0,88463.0,0.14971216]
[1767132800784,0.0679531,88488.0,88470.0,0.13839586]
[1767132801381,0.0113135,88486.0,88470.0,0.13839586]
[1767132801587,0.01525172,88492.0,88476.0,0.14971046]
[1767132801882,0.0113097,88515.0,88500.0,0.013]
[1767132802080,0.13839586,88510.0,88498.0,0.05664]
[1767132802276,0.13839586,88510.0,88497.0,0.05664]
[1767132802472,0.0113112,88503.0,88497.0,0.05664]
[1767132802681,0.0113107,88508.0,88497.0,0.05664]
[1767132803082,0.011311,88505.0,88497.0,0.05664]
[1767132803279,0.011311,88505.0,88495.0,0.09636945]
[1767132803280,0.13839586,88510.0,88495.0,5e-08]
[1767132803480,0.13839586,88507.0,88480.0,0.05271779]
[1767132803681,0.0113096,88516.0,88478.0,0.05458413]
[1767132803885,0.0113124,88494.0,88480.0,0.13839586]
[1767132804085,0.0113124,88494.0,88478.0,0.05458413]
[1767132804281,0.0113128,88491.0,88478.0,0.05458413]
[1767132804480,0.0113123,88495.0,88478.0,0.05458413]
[1767132804681,0.01148107,88495.0,88478.0,0.05379542]
[1767132805478,0.00016877,88495.0,88478.0,0.05379542]
[1767132805702,0.0113128,88491.0,88478.0,0.00016945]
[1767132805880,0.01148107,88495.0,88478.0,0.00016945]
[1767132807482,0.0113126,88492.0,88478.0,0.00016945]
[1767132807995,0.0113134,88486.0,88478.0,5e-08]
[1767132808183,0.0113129,88490.0,88478.0,5e-08]
[1767132808382,0.14970876,88490.0,88478.0,5e-08]
[1767132809186,0.0113129,88490.0,88478.0,5e-08]
[1767132809891,0.05668,88492.0,88478.0,5e-08]
[1767132810192,0.0679927,88492.0,88478.0,5e-08]
[1767132818798,0.0113129,88490.0,88478.0,5e-08]
[1767132819303,0.05668,88492.0,88478.0,5e-08]
[1767132820800,0.0113141,88481.0,88478.0,5e-08]
[1767132823802,0.05664,88483.0,88478.0,5e-08]
[1767132825510,0.05664,88488.0,88478.0,0.01131435]
[1767132825914,0.1528,88493.0,88480.0,0.011314]
[1767132826212,0.1528,88493.0,88478.0,5e-08]
[1767132826605,0.1528,88493.0,88484.0,0.0113136]
[1767132827110,0.1528,88493.0,88481.0,0.011314]
[1767132827607,0.1528,88493.0,88478.0,5e-08]
[1767132829316,0.1528,88493.0,88482.0,0.0113138]
[1767132829621,0.05664,88493.0,88478.0,5e-08]
[1767132829821,0.00016877,88495.0,88486.0,0.0113133]
[1767132830017,0.00016877,88495.0,88483.0,0.0113137]
[1767132830221,0.00016877,88495.0,88480.0,0.0113141]
[1767132831016,0.00016877,88495.0,88482.0,0.0113138]
[1767132832423,0.00016877,88495.0,88479.0,0.09616]
[1767132834027,0.00016877,88495.0,88482.0,0.0113138]
[1767132839919,0.00016877,88495.0,88480.0,0.0113141]
[1767132841428,0.00016877,88495.0,88482.0,0.0113138]
[1767132845135,0.0113132,88488.0,88478.0,5e-08]
[1767132845436,0.00016877,88495.0,88479.0,0.05664]
[1767132845635,0.00016877,88495.0,88478.0,5e-08]
[1767132846235,0.0113127,88492.0,88478.0,0.01131435]
[1767132847635,0.0113127,88492.0,88478.0,5e-08]
[1767132850626,0.0113127,88492.0,88478.0,0.01131445]
[1767132855238,0.01148107,88495.0,88478.0,0.01131445]
[1767132866840,0.01148107,88495.0,88480.0,0.0113141]
[1767132873450,0.0113125,88493.0,88478.0,5e-08]
[1767132874045,0.0113125,88493.0,88479.0,0.0113143]
[1767132875051,0.0113125,88493.0,88478.0,5e-08]
[1767132876352,0.00016877,88495.0,88478.0,5e-08]
[1767132877352,0.00016877,88495.0,88480.0,0.0113141]
[1767132878240,0.00016877,88495.0,88482.0,0.0113138]
[1767132878950,0.00016877,88495.0,88484.0,0.0113136]
[1767132879145,0.00016877,88495.0,88481.0,0.011314]
[1767132880056,0.00016877,88495.0,88486.0,0.0113134]
[1767132882244,0.09616,88509.0,88483.0,0.15276]
[1767132882555,0.0247724,88508.0,88483.0,0.15276]
[1767132882751,0.15276,88509.0,88483.0,0.15276]
[1767132882752,0.0247724,88507.0,88483.0,0.15276]
[1767132882948,0.15276,88509.0,88483.0,0.16402257]
[1767132883148,0.02477047,88508.0,88483.0,0.16402257]
[1767132883349,0.0001694,88504.0,88483.0,0.16402257]
[1767132883544,0.0001694,88504.0,88483.0,0.15276]
[1767132883753,0.0001694,88504.0,88490.0,0.0113128]
[1767132884154,0.0001694,88504.0,88492.0,0.0113125]
[1767132886256,0.0001694,88504.0,88483.0,0.15276]
[1767132886456,0.15276,88509.0,88483.0,0.15276]
[1767132887157,0.96164,88534.0,88483.0,0.15276]
[1767132887158,0.0113082,88527.0,88507.0,0.0113106]
[1767132887357,0.0113092,88519.0,88508.0,0.00016945]
[1767132887555,0.13814996,88520.0,88508.0,0.00016945]
[1767132888956,0.13814996,88520.0,88504.0,0.04680945]
[1767132890162,0.0113092,88519.0,88504.0,0.04680945]
[1767132890363,0.0113092,88519.0,88503.0,0.05680945]
[1767132891959,0.00016945,88521.0,88503.0,0.05680945]
[1767132892155,0.00016945,88521.0,88503.0,0.06812055]
[1767132892364,0.00016945,88521.0,88503.0,0.05680945]
[1767132893264,0.00016945,88521.0,88507.0,0.0113106]
[1767132894366,0.00016945,88521.0,88508.0,0.05664]
[1767132897263,0.0113099,88514.0,88503.0,0.00016945]
[1767132897566,0.0113094,88517.0,88504.0,0.05664]
[1767132898166,0.14945906,88520.0,88504.0,0.05664]
[1767132900563,0.0113094,88518.0,88504.0,0.05664]
[1767132900870,0.0113092,88519.0,88503.0,0.05680945]
[1767132902064,0.19478996,88520.0,88504.0,0.0113111]
[1767132902270,0.20609906,88520.0,88503.0,0.05680945]
[1767132903170,0.20609906,88520.0,88503.0,0.06812055]
[1767132903570,0.20609906,88520.0,88503.0,0.05680945]
[1767132903773,0.0113094,88518.0,88503.0,0.05680945]
[1767132904662,0.20609906,88520.0,88503.0,0.05680945]
[1767132904863,0.19478996,88520.0,88503.0,0.05680945]
[1767132905771,0.05664,88520.0,88503.0,0.05680945]
[1767132905975,0.19478996,88520.0,88503.0,0.05680945]
[1767132906277,0.0113094,88518.0,88503.0,0.05680945]
[1767132909772,0.19478996,88520.0,88503.0,0.00016945]
[1767132909972,0.0113106,88508.0,88491.0,0.52458459]
[1767132910168,0.0566,88512.0,88495.0,0.0113122]
[1767132910973,0.0113102,88511.0,88495.0,0.01148165]
[1767132918287,0.0113102,88511.0,88495.0,0.00016945]
[1767132918473,0.0113107,88507.0,88495.0,0.00016945]
[1767132918679,0.14946036,88510.0,88495.0,0.00016945]
[1767132919889,0.14946036,88510.0,88495.0,0.01148165]
[1767132920086,0.0113109,88506.0,88495.0,0.00016945]
[1767132920282,0.0113105,88509.0,88495.0,0.00016945]
[1767132920786,0.13814996,88510.0,88495.0,0.00016945]
[1767132921592,0.0113105,88509.0,88495.0,0.00016945]
[1767132922693,0.0113108,88507.0,88495.0,0.00016945]
[1767132924594,0.14946036,88510.0,88495.0,0.00016945]
[1767132925980,0.0113106,88508.0,88495.0,0.00016945]
[1767132926384,0.0566,88512.0,88481.0,0.06068426]
[1767132926385,0.13814996,88505.0,88481.0,0.06068426]
[1767132926583,0.13814996,88500.0,88477.0,0.49900343]
[1767132926787,0.13814996,88500.0,88478.0,0.0566]
[1767132927183,0.011313,88490.0,88472.0,0.06068426]
[1767132927389,0.00016945,88490.0,88473.0,0.15272]
[1767132927585,0.00016945,88490.0,88474.0,0.0113149]
[1767132927987,0.13814996,88484.0,88472.0,0.00016945]
[1767132928199,0.0113135,88485.0,88472.0,0.00016945]
[1767132928491,0.0566,88486.0,88472.0,0.00016945]
[1767132928987,0.0679135,88486.0,88472.0,0.00016945]
[1767132930088,0.0679135,88486.0,88468.0,0.0113156]
[1767132931089,0.0679135,88486.0,88468.0,0.01148505]
[1767132931793,0.0113146,88477.0,88468.0,0.00016945]
[1767132932696,8.746e-05,88476.0,88456.0,0.0113172]
[1767132932892,8.746e-05,88476.0,88460.0,0.0113166]
[1767132939906,8.746e-05,88476.0,88459.0,0.00016954]
[1767132942209,8.746e-05,88476.0,88459.0,0.01148624]
[1767132943008,0.09624746,88476.0,88459.0,0.01148624]
[1767132943199,0.09624746,88476.0,88459.0,0.00572801]
[1767132944201,0.09624746,88476.0,88459.0,0.00584119]
[1767132946803,0.09624746,88476.0,88461.0,0.0113165]
[1767132955019,0.09624746,88476.0,88459.0,0.00011318]
[1767132956207,0.0113151,88473.0,88459.0,0.00011318]
[1767132958606,0.0113156,88469.0,88459.0,0.00011318]
[1767132960320,0.09624746,88476.0,88459.0,0.00011318]
[1767132960619,0.0113169,88459.0,88442.0,0.06068426]
[1767132960824,0.00010061,88458.0,88438.0,0.06068426]
[1767132961123,0.06805761,88458.0,88439.0,0.0113193]
[1767132961312,0.06805761,88458.0,88438.0,0.0113194]
[1767132961623,0.00016954,88457.0,88438.0,0.0113194]
[1767132962725,0.0113172,88456.0,88438.0,0.0113194]
[1767132962924,0.00016954,88457.0,88433.0,0.0113201]
[1767132963319,0.0113185,88446.0,88427.0,0.07200506]
[1767132963515,0.0113188,88444.0,88426.0,0.06068426]
[1767132963715,0.05664,88443.0,88426.0,0.0113209]
[1767132963915,0.05664,88443.0,88422.0,0.06076911]
[1767132964224,0.05664,88443.0,88422.0,8.485e-05]
[1767132965122,0.05664,88443.0,88431.0,0.0113203]
[1767132965821,0.05664,88443.0,88422.0,8.485e-05]
[1767132966026,0.05664,88443.0,88430.0,0.0113205]
[1767132966223,0.05664,88443.0,88427.0,0.0113209]
[1767132966423,0.05664,88443.0,88422.0,8.485e-05]
[1767132967516,0.05664,88443.0,88428.0,0.0113207]
[1767132968223,0.0679589,88443.0,88425.0,0.0113211]
[1767132970121,0.05664,88443.0,88422.0,8.485e-05]
[1767132971320,0.05664,88443.0,88426.0,0.011321]
[1767132971518,0.011319,88442.0,88423.0,0.0113214]
[1767132971827,0.00011943,88441.0,88425.0,0.0113211]
[1767132972014,0.0113193,88440.0,88422.0,8.485e-05]
[1767132972216,0.0113193,88440.0,88423.0,0.0113214]
[1767132974427,0.00011943,88441.0,88422.0,8.485e-05]
[1767132974820,0.00011943,88441.0,88425.0,0.0113211]
[1767132975031,0.00011943,88441.0,88422.0,0.01140635]
[1767132975224,0.00011943,88441.0,88425.0,0.0113212]
[1767132977029,0.00011943,88441.0,88427.0,0.0113209]
[1767132983932,0.01143863,88441.0,88424.0,0.0113212]
[1767132988936,0.05664,88440.0,88424.0,0.0113212]
[1767132994726,0.05664,88440.0,88426.0,0.011321]
[1767132996936,0.0679593,88440.0,88426.0,0.011321]
[1767132998535,0.20628614,88440.0,88426.0,0.011321]
[1767133002940,0.00011943,88441.0,88433.0,0.0113201]
[1767133039770,0.00011943,88441.0,88429.0,0.15284]
[1767133039967,0.00016954,88457.0,88429.0,0.15284]
[1767133040274,0.14964484,88450.0,88432.0,0.0113202]
[1767133040974,0.0113184,88448.0,88429.0,0.15284]
[1767133041272,0.13832684,88440.0,88430.0,0.15284]
[1767133043273,0.0113183,88448.0,88430.0,0.15284]
[1767133043467,0.0113186,88446.0,88431.0,0.05664]
[1767133047375,0.0113186,88446.0,88432.0,0.05664]
[1767133050381,0.13832684,88450.0,88432.0,0.05664]
[1767133050382,0.0113188,88444.0,88432.0,0.05664]
[1767133052385,0.0113184,88447.0,88432.0,0.05664]
[1767133055691,0.0113182,88449.0,88432.0,0.05664]
[1767133055987,0.0113184,88447.0,88432.0,0.05664]
[1767133062395,0.0113184,88447.0,88432.0,0.0679602]
[1767133062692,0.011318,88450.0,88434.0,0.01132]
[1767133062893,0.02472347,88449.0,88432.0,0.05664]
[1767133063094,0.0962,88460.0,88432.0,0.05664]
[1767133063594,0.0962,88460.0,88444.0,0.0113187]
[1767133063784,0.05664,88464.0,88448.0,0.0113182]
[1767133063985,0.05664,88464.0,88445.0,0.0113186]
[1767133066501,0.0113164,88463.0,88444.0,0.05664]
[1767133067094,0.05664,88464.0,88444.0,0.05664]
[1767133073413,0.0113161,88465.0,88444.0,0.05664]
[1767133076917,0.15284,88467.0,88444.0,0.05664]
[1767133077314,0.0113162,88464.0,88444.0,0.0679587]
[1767133080122,0.0113165,88462.0,88444.0,0.0679587]
[1767133094126,0.0113168,88460.0,88444.0,0.0679587]
[1767133094428,0.0113172,88456.0,88441.0,0.07220696]
[1767133094634,0.0113172,88456.0,88420.0,0.0113217]
[1767133094635,0.0113204,88432.0,88396.0,0.31918847]
[1767133094823,0.00016966,88423.0,88413.0,0.0113226]
[1767133095023,0.0113198,88436.0,88412.0,0.0962]
[1767133095231,0.02833142,88435.0,88413.0,0.0113226]
[1767133095428,0.01132,88435.0,88413.0,0.0113226]
[1767133095632,0.02964916,88434.0,88416.0,0.0113222]
[1767133095831,9.869e-05,88434.0,88417.0,0.05672]
[1767133096133,0.00026835,88434.0,88417.0,0.05688966]
[1767133101530,0.0113202,88433.0,88417.0,0.00016966]
[1767133101732,0.0113202,88433.0,88418.0,0.05672]
[1767133107940,0.00026835,88434.0,88418.0,0.05672]
[1767133109241,0.0113202,88433.0,88418.0,0.05672]
[1767133109636,0.00026835,88434.0,88418.0,0.05672]
[1767133111443,0.00026835,88434.0,88418.0,0.068042]
[1767133115144,0.0323853,88433.0,88418.0,0.068042]
[1767133115337,0.00026835,88434.0,88418.0,0.068042]
[1767133115538,0.0323853,88433.0,88418.0,0.068042]
[1767133115738,0.00026835,88434.0,88418.0,0.068042]
[1767133116046,0.0323853,88433.0,88418.0,0.068042]
[1767133116344,0.01158845,88434.0,88418.0,0.068042]
[1767133116548,0.03239019,88433.0,88418.0,0.068042]
[1767133116847,0.01158845,88434.0,88418.0,0.068042]
[1767133117145,0.03239019,88433.0,88418.0,0.068042]
[1767133117347,0.03239019,88432.0,88418.0,0.068042]
[1767133117548,0.01158845,88434.0,88418.0,0.068042]
[1767133117748,0.03239606,88433.0,88418.0,0.068042]
[1767133117949,0.03239606,88432.0,88418.0,0.068042]
[1767133118148,0.01158845,88434.0,88418.0,0.068042]
[1767133118349,0.03240308,88433.0,88418.0,0.068042]
[1767133118550,0.03240308,88432.0,88418.0,0.068042]
[1767133118848,0.01158845,88434.0,88418.0,0.068042]
[1767133119050,0.03240307,88433.0,88418.0,0.068042]
[1767133119251,0.03240307,88432.0,88418.0,0.068042]
[1767133119548,0.03240307,88431.0,88418.0,0.068042]
[1767133119846,0.01158845,88434.0,88418.0,0.068042]
[1767133120034,0.03241146,88433.0,88418.0,0.068042]
[1767133120242,0.03241146,88432.0,88418.0,0.068042]
[1767133120438,0.03241146,88431.0,88418.0,0.068042]
[1767133120649,0.01158845,88434.0,88418.0,0.068042]
[1767133120949,0.03242152,88433.0,88420.0,0.0113218]
[1767133121149,0.03242152,88432.0,88420.0,0.0113218]
[1767133121347,0.03242152,88431.0,88420.0,0.0113218]
[1767133121547,0.03242152,88430.0,88420.0,0.0113218]
[1767133121753,0.01158845,88434.0,88420.0,0.0113218]
[1767133121948,0.03243378,88433.0,88420.0,0.0113218]
[1767133122250,0.03243378,88432.0,88418.0,0.05672]
[1767133122451,0.03243378,88431.0,88418.0,0.05672]
[1767133122652,0.13834484,88440.0,88418.0,0.05672]
[1767133122653,0.0962,88446.0,88429.0,0.0113206]
[1767133122952,0.0113189,88443.0,88430.0,0.05672]
[1767133123153,0.0962,88446.0,88430.0,0.05672]
[1767133124352,0.0113186,88445.0,88430.0,0.05672]
[1767133129756,0.13834484,88440.0,88417.0,0.00016966]
[1767133129960,0.13834484,88440.0,88372.0,0.20196036]
[1767133129961,0.0113222,88418.0,88408.0,0.01096]
[1767133130254,0.13834484,88418.0,88404.0,0.0962]
[1767133130458,0.13834484,88414.0,88379.0,0.47404153]
[1767133130660,0.0113237,88406.0,88380.0,0.29126484]
[1767133130847,0.13834484,88410.0,88380.0,0.3449923]
[1767133131050,0.00016966,88402.0,88384.0,0.00016966]
[1767133131261,0.00016966,88402.0,88393.0,0.0113252]
[1767133131460,0.00016966,88402.0,88395.0,0.011325]
[1767133131661,0.13834484,88410.0,88396.0,0.0962]
[1767133134464,0.15292,88420.0,88400.0,0.13834484]
[1767133134651,0.03208099,88419.0,88401.0,0.05672]
[1767133134858,0.05672,88420.0,88401.0,0.05672]
[1767133135057,0.03208087,88419.0,88401.0,0.05672]
[1767133135364,0.0113215,88423.0,88407.0,0.0113234]
[1767133135565,0.00016966,88419.0,88408.0,0.05672]
[1767133140773,0.05672,88424.0,88409.0,0.0113232]
[1767133140976,3.83e-06,88423.0,88410.0,0.13834484]
[1767133141279,0.0962,88435.0,88420.0,0.0113217]
[1767133146177,0.0962,88435.0,88419.0,0.05672]
[1767133146374,0.13834484,88430.0,88419.0,0.05672]
[1767133147382,0.13834484,88430.0,88420.0,0.05672]
[1767133158904,0.05688966,88436.0,88420.0,0.05672]
[1767133159097,0.03182916,88435.0,88420.0,0.05672]
[1767133159298,0.03182916,88434.0,88420.0,0.05672]
[1767133159503,0.03182916,88433.0,88420.0,0.05672]
[1767133159705,0.03182916,88432.0,88420.0,0.05672]
[1767133159905,0.05688966,88436.0,88420.0,0.05672]
[1767133160107,0.03183187,88435.0,88420.0,0.05672]
[1767133160298,0.03183187,88434.0,88420.0,0.05672]
[1767133160500,0.03183187,88433.0,88420.0,0.05672]
[1767133160700,0.03183187,88432.0,88420.0,0.05672]
[1767133160906,0.01132,88435.0,88420.0,0.05672]
[1767133161203,0.03183166,88434.0,88420.0,0.05672]
[1767133161404,0.03183166,88433.0,88420.0,0.05672]
[1767133161605,0.03183166,88432.0,88420.0,0.05672]
[1767133161905,0.03183166,88431.0,88420.0,0.05672]
[1767133162100,0.05688966,88436.0,88420.0,0.05672]
[1767133162309,0.03184164,88435.0,88420.0,0.05672]
[1767133162503,0.03184164,88434.0,88420.0,0.05672]
[1767133162703,0.03184164,88433.0,88420.0,0.05672]
[1767133162903,0.03184164,88432.0,88420.0,0.05672]
[1767133163102,0.03184164,88431.0,88420.0,0.05672]
[1767133163304,0.03184164,88430.0,88420.0,0.05672]
[1767133163602,0.05688966,88436.0,88420.0,0.05672]
[1767133163804,0.03184951,88435.0,88420.0,0.05672]
[1767133164004,0.03184951,88434.0,88420.0,0.05672]
[1767133164299,0.03184951,88433.0,88421.0,0.05672]
[1767133164504,0.03184951,88432.0,88421.0,0.05672]
[1767133164808,0.03184951,88431.0,88421.0,0.05672]
[1767133165006,0.03184951,88430.0,88421.0,0.05672]
[1767133165206,0.03184951,88429.0,88421.0,0.05672]
[1767133165409,0.05688966,88436.0,88421.0,0.05672]
[1767133165606,0.03186347,88435.0,88421.0,0.05672]
[1767133165909,0.03186347,88434.0,88421.0,0.05672]
[1767133166107,0.03186347,88433.0,88421.0,0.05672]
[1767133166307,0.03186347,88432.0,88421.0,0.05672]
[1767133166510,0.03186347,88431.0,88421.0,0.05672]
[1767133166708,0.03186347,88430.0,88421.0,0.05672]
[1767133166909,0.03186347,88429.0,88421.0,0.05672]
[1767133167103,0.05688966,88436.0,88421.0,0.05672]
[1767133167411,0.03187696,88435.0,88421.0,0.05672]
[1767133167608,0.03187696,88434.0,88421.0,0.05672]
[1767133167808,0.03187696,88433.0,88421.0,0.05672]
[1767133168009,0.03187696,88432.0,88421.0,0.05672]
[1767133168211,0.03187696,88431.0,88421.0,0.05672]
[1767133168509,0.03187696,88430.0,88416.0,0.0113223]
[1767133168699,0.03187696,88429.0,88419.0,0.0113219]
[1767133168895,0.03187696,88428.0,88419.0,0.0113219]
[1767133169111,0.03191332,88427.0,88419.0,0.0113219]
[1767133169309,0.03191332,88426.0,88419.0,0.0113219]
[1767133169511,0.01132,88435.0,88419.0,0.0113219]
[1767133169715,0.03191332,88434.0,88419.0,0.0113219]
[1767133169912,0.03191332,88433.0,88419.0,0.0113219]
[1767133170108,0.03191332,88432.0,88419.0,0.0113219]
[1767133170412,0.03191332,88431.0,88419.0,0.0113219]
[1767133170610,0.03191332,88430.0,88420.0,0.15292]
[1767133170811,0.03191332,88429.0,88420.0,0.15292]
[1767133171011,0.03191332,88428.0,88420.0,0.15292]
[1767133171206,0.03191332,88427.0,88420.0,0.15292]
[1767133171407,0.03191332,88426.0,88420.0,0.15292]
[1767133171607,0.01132,88435.0,88420.0,0.15292]
[1767133171807,0.03191325,88434.0,88420.0,0.15292]
[1767133172006,0.03191325,88433.0,88420.0,0.15292]
[1767133172207,0.03191325,88432.0,88420.0,0.15292]
[1767133172410,0.03191325,88431.0,88420.0,0.15292]
[1767133172711,0.03191325,88430.0,88420.0,0.15292]
[1767133172912,0.03191325,88429.0,88420.0,0.15292]
[1767133173106,0.03191325,88428.0,88420.0,0.15292]
[1767133173411,0.03191325,88427.0,88420.0,0.15292]
[1767133173610,0.03191325,88426.0,88420.0,0.15292]
[1767133173816,0.01132,88435.0,88420.0,0.15292]
[1767133174113,0.03191372,88434.0,88420.0,0.15292]
[1767133174411,0.03191372,88433.0,88420.0,0.15292]
[1767133174613,0.03191372,88432.0,88420.0,0.15292]
[1767133174812,0.03191372,88431.0,88420.0,0.15292]
[1767133175011,0.05688966,88436.0,88420.0,0.29126484]
[1767133175315,0.06115986,88446.0,88428.0,0.0113207]
[1767133175607,0.0113186,88445.0,88430.0,0.0113205]
[1767133175808,0.06115986,88448.0,88431.0,0.1075204]
[1767133176005,0.0113181,88449.0,88431.0,0.0962]
[1767133176200,0.0113181,88449.0,88431.0,0.09636966]
[1767133176513,0.0113185,88447.0,88431.0,0.09636966]
[1767133178605,0.00016966,88449.0,88431.0,0.09636966]
[1767133179005,0.00016966,88449.0,88432.0,0.0113203]
[1767133182018,0.0113183,88448.0,88431.0,0.09636966]
[1767133184321,0.00016966,88449.0,88434.0,0.01132]
[1767133184516,0.00016966,88449.0,88435.0,0.04768]
[1767133184719,0.0113185,88446.0,88435.0,0.04768]
[1767133184921,0.00016966,88449.0,88435.0,0.04768]
[1767133187120,0.03171983,88448.0,88435.0,0.04768]
[1767133187323,0.03171983,88447.0,88435.0,0.04768]
[1767133187514,0.03171983,88446.0,88435.0,0.04768]
[1767133187716,0.03171983,88445.0,88435.0,0.04768]
[1767133187921,0.03171983,88444.0,88435.0,0.04768]
[1767133188227,0.03171983,88443.0,88435.0,0.04768]
[1767133188415,0.03171983,88442.0,88435.0,0.04768]
[1767133188615,0.03171983,88441.0,88435.0,0.04768]
[1767133188815,0.0113183,88448.0,88435.0,0.04768]
[1767133189016,0.03154804,88447.0,88435.0,0.04768]
[1767133189316,0.03154804,88446.0,88435.0,0.04768]
[1767133189515,0.03154804,88445.0,88435.0,0.04768]
[1767133189725,0.03154804,88444.0,88435.0,0.04768]
[1767133189921,0.03154804,88443.0,88435.0,0.04768]
[1767133190224,0.03154804,88442.0,88435.0,0.04768]
[1767133190418,0.03154804,88441.0,88435.0,0.04768]
[1767133190619,0.0113183,88448.0,88435.0,0.04768]
[1767133190926,0.03154795,88447.0,88435.0,0.04768]
[1767133191224,0.03154795,88446.0,88435.0,0.04768]
[1767133191425,0.03154795,88445.0,88435.0,0.04768]
[1767133191620,0.03154795,88444.0,88435.0,0.02868]
[1767133191818,0.03154795,88443.0,88435.0,0.02868]
[1767133192015,0.03154795,88442.0,88435.0,0.02868]
[1767133192217,0.03154795,88441.0,88435.0,0.02868]
[1767133192417,0.00016966,88449.0,88435.0,0.02868]
[1767133192617,0.03154887,88448.0,88435.0,0.02868]
[1767133192925,0.03154887,88447.0,88435.0,0.02868]
[1767133193127,0.03154887,88446.0,88435.0,0.02868]
[1767133193429,0.03154887,88445.0,88435.0,0.02868]
[1767133193620,0.03154887,88444.0,88435.0,0.02868]
[1767133193927,0.03154887,88443.0,88435.0,0.02868]
[1767133194123,0.03154887,88442.0,88435.0,0.02868]
[1767133194428,0.03154887,88441.0,88435.0,0.02868]
[1767133194620,0.03154887,88440.0,88435.0,0.02868]
[1767133194831,0.01148786,88449.0,88435.0,0.02868]
[1767133195029,0.03155062,88448.0,88435.0,0.02868]
[1767133195229,0.03155062,88447.0,88435.0,0.02868]
[1767133195527,0.03155062,88446.0,88435.0,0.02868]
[1767133195719,0.03155062,88445.0,88435.0,0.02868]
[1767133195921,0.03155062,88444.0,88435.0,0.02868]
[1767133196118,0.03155062,88443.0,88435.0,0.02868]
[1767133196319,0.03155062,88442.0,88435.0,0.02868]
[1767133196521,0.03155062,88441.0,88435.0,0.02868]
[1767133196828,0.03155062,88440.0,88435.0,0.02868]
[1767133197034,0.01148786,88449.0,88435.0,0.02868]
[1767133197330,0.03155371,88448.0,88435.0,0.02868]
[1767133197628,0.03155371,88447.0,88435.0,0.02868]
[1767133197827,0.03155371,88446.0,88435.0,0.02868]
[1767133198029,0.03155371,88445.0,88435.0,0.02868]
[1767133198219,0.03155371,88444.0,88435.0,0.02868]